[Event "*** Titled Tuesday Blitz"]
[Site "Chess.com"]
[Date "2020.05.12"]
[Round "5"]
[White "Fins0905"]
[Black "GHANDEEVAM2003"]
[Result "0-1"]
[WhiteElo "2616"]
[BlackElo "2930"]
[TimeControl "180+1"]
[EndTime "10:55:59 PDT"]
[Termination "GHANDEEVAM2003 won by checkmate"]

1. e4 {[%clk 0:03:00.9]} 1... e6 {[%clk 0:03:00]} 2. d3 {[%clk 0:02:59.6]} 2...
d5 {[%clk 0:03:00.9]} 3. Nd2 {[%clk 0:03:00.2]} 3... Nf6 {[%clk 0:03:01.3]} 4.
Ngf3 {[%clk 0:03:00.3]} 4... c5 {[%clk 0:03:01.9]} 5. g3 {[%clk 0:03:00.3]} 5...
Nc6 {[%clk 0:03:02.3]} 6. Bg2 {[%clk 0:03:00.6]} 6... g6 {[%clk 0:03:02.9]} 7.
O-O {[%clk 0:03:00.5]} 7... Bg7 {[%clk 0:03:03.5]} 8. Re1 {[%clk 0:03:00.2]}
8... O-O {[%clk 0:03:04]} 9. c3 {[%clk 0:02:36.4]} 9... b6 {[%clk 0:02:59.1]}
10. e5 {[%clk 0:02:26.1]} 10... Nd7 {[%clk 0:02:58.1]} 11. d4 {[%clk 0:02:26.7]}
11... f6 {[%clk 0:02:58.7]} 12. exf6 {[%clk 0:02:23.9]} 12... Qxf6 {[%clk
0:02:59.6]} 13. Nb3 {[%clk 0:01:36.2]} 13... c4 {[%clk 0:02:58.7]} 14. Bg5
{[%clk 0:01:31.8]} 14... Qf7 {[%clk 0:02:57.5]} 15. Nbd2 {[%clk 0:01:31.2]}
15... e5 {[%clk 0:02:50.2]} 16. dxe5 {[%clk 0:01:22.4]} 16... Ndxe5 {[%clk
0:02:51.1]} 17. Nxe5 {[%clk 0:01:02.9]} 17... Nxe5 {[%clk 0:02:52]} 18. f4
{[%clk 0:00:58.8]} 18... Bg4 {[%clk 0:02:48.1]} 19. Qa4 {[%clk 0:00:45.8]} 19...
Bd7 {[%clk 0:02:27.4]} 20. Qa3 {[%clk 0:00:37.7]} 20... h6 {[%clk 0:01:42.7]}
21. Bxh6 {[%clk 0:00:35]} 21... Bxh6 {[%clk 0:01:38.7]} 22. Rxe5 {[%clk
0:00:34.8]} 22... Bc6 {[%clk 0:01:38.6]} 23. Rae1 {[%clk 0:00:28.9]} 23... Rae8
{[%clk 0:01:36.4]} 24. Nxc4 {[%clk 0:00:22]} 24... Bg7 {[%clk 0:01:33.8]} 25.
Nd6 {[%clk 0:00:17.4]} 25... Rxe5 {[%clk 0:01:33]} 26. Rxe5 {[%clk 0:00:12.1]}
26... Qd7 {[%clk 0:01:25.3]} 27. Bxd5+ {[%clk 0:00:12.1]} 27... Bxd5 {[%clk
0:01:26.2]} 28. Rxd5 {[%clk 0:00:13]} 28... Qe6 {[%clk 0:01:26.2]} 29. Qb3
{[%clk 0:00:12]} 29... Qe3+ {[%clk 0:01:24.9]} 30. Kg2 {[%clk 0:00:12.5]} 30...
Qe2+ {[%clk 0:01:23.5]} 31. Kh3 {[%clk 0:00:11.9]} 31... Qf1+ {[%clk 0:01:19.1]}
32. Kg4 {[%clk 0:00:11.3]} 32... Qe2+ {[%clk 0:01:18.9]} 33. Kh3 {[%clk
0:00:10.8]} 33... Kh7 {[%clk 0:01:12.6]} 34. Qc4 {[%clk 0:00:10]} 34... Qxb2
{[%clk 0:01:06.7]} 35. Qe4 {[%clk 0:00:10.1]} 35... Qxc3 {[%clk 0:00:57.9]} 36.
Rg5 {[%clk 0:00:10.1]} 36... Qf6 {[%clk 0:00:54.5]} 37. Ne8 {[%clk 0:00:10.2]}
37... Qf7 {[%clk 0:00:51.9]} 38. Nd6 {[%clk 0:00:10.3]} 38... Qd7+ {[%clk
0:00:50.7]} 39. f5 {[%clk 0:00:09.9]} 39... Rf6 {[%clk 0:00:38]} 40. Nc4 {[%clk
0:00:06.4]} 40... gxf5 {[%clk 0:00:35.5]} 41. Qe2 {[%clk 0:00:03.8]} 41... f4+
{[%clk 0:00:33.4]} 42. Qg4 {[%clk 0:00:03.2]} 42... Rh6+ {[%clk 0:00:31.2]} 43.
Kg2 {[%clk 0:00:03.7]} 43... Qc6+ {[%clk 0:00:31.6]} 44. Kg1 {[%clk 0:00:03.1]}
44... Bd4+ {[%clk 0:00:30.9]} 45. Kf1 {[%clk 0:00:02.9]} 45... Qxc4+ {[%clk
0:00:30.7]} 46. Kg2 {[%clk 0:00:02.7]} 46... Qc2+ {[%clk 0:00:28.9]} 47. Kf3
{[%clk 0:00:02.9]} 47... Qd3+ {[%clk 0:00:27.6]} 48. Kxf4 {[%clk 0:00:03.3]}
48... Qe3+ {[%clk 0:00:25.5]} 49. Kf5 {[%clk 0:00:03.4]} 49... Rf6# {[%clk
0:00:26.4]} 0-1

[Event "*** Titled Tuesday Blitz"]
[Site "Chess.com"]
[Date "2020.05.12"]
[Round "5"]
[White "pawel83"]
[Black "Mikhail_Golubev"]
[Result "0-1"]
[WhiteElo "2363"]
[BlackElo "2512"]
[TimeControl "180+1"]
[EndTime "10:55:59 PDT"]
[Termination "Mikhail_Golubev won by resignation"]

1. d4 {[%clk 0:03:00.9]} 1... Nf6 {[%clk 0:02:59.4]} 2. Nf3 {[%clk 0:02:58.7]}
2... d6 {[%clk 0:02:58.7]} 3. c4 {[%clk 0:02:58.4]} 3... g6 {[%clk 0:02:58.7]}
4. Nc3 {[%clk 0:02:58.4]} 4... Bg7 {[%clk 0:02:59]} 5. e4 {[%clk 0:02:58.9]}
5... O-O {[%clk 0:02:58.9]} 6. Be2 {[%clk 0:02:59.4]} 6... e5 {[%clk 0:02:59.1]}
7. dxe5 {[%clk 0:02:59.6]} 7... dxe5 {[%clk 0:02:58.7]} 8. Qxd8 {[%clk
0:02:58.8]} 8... Rxd8 {[%clk 0:02:58.7]} 9. Bg5 {[%clk 0:02:59.3]} 9... c6
{[%clk 0:02:51.8]} 10. Nd2 {[%clk 0:02:55.5]} 10... Na6 {[%clk 0:02:41.4]} 11.
Nb3 {[%clk 0:02:41.4]} 11... h6 {[%clk 0:02:27.4]} 12. Bh4 {[%clk 0:02:36.7]}
12... Be6 {[%clk 0:02:17.2]} 13. O-O {[%clk 0:02:22.3]} 13... g5 {[%clk
0:02:06.5]} 14. Bg3 {[%clk 0:02:21.2]} 14... Nd7 {[%clk 0:02:06.5]} 15. f3
{[%clk 0:02:15.7]} 15... Bf8 {[%clk 0:01:50.9]} 16. a3 {[%clk 0:02:12.2]} 16...
Nac5 {[%clk 0:01:47.5]} 17. Na5 {[%clk 0:01:58.5]} 17... Rac8 {[%clk 0:01:46.8]}
18. b4 {[%clk 0:01:37]} 18... b6 {[%clk 0:01:46.7]} 19. bxc5 {[%clk 0:01:37]}
19... Bxc5+ {[%clk 0:01:41.9]} 20. Bf2 {[%clk 0:01:34.4]} 20... bxa5 {[%clk
0:01:40.2]} 21. Rfd1 {[%clk 0:01:29]} 21... Bxf2+ {[%clk 0:01:39.1]} 22. Kxf2
{[%clk 0:01:28.3]} 22... Nc5 {[%clk 0:01:39.2]} 23. Ke3 {[%clk 0:01:24.4]} 23...
Nb3 {[%clk 0:01:35.9]} 24. Rab1 {[%clk 0:01:18.8]} 24... Nd4 {[%clk 0:01:35.4]}
25. Bd3 {[%clk 0:01:13]} 25... Rb8 {[%clk 0:01:31.7]} 26. Na4 {[%clk 0:01:09.5]}
26... Kf8 {[%clk 0:01:05.8]} 27. Nc5 {[%clk 0:01:07.6]} 27... Ke7 {[%clk
0:01:05.7]} 28. Nb7 {[%clk 0:01:01.6]} 28... Rdc8 {[%clk 0:00:59.6]} 29. Nxa5
{[%clk 0:00:57.8]} 29... c5 {[%clk 0:00:53.2]} 30. g3 {[%clk 0:00:31.5]} 30...
Rb6 {[%clk 0:00:52.5]} 31. Nb7 {[%clk 0:00:26.6]} 31... Rc7 {[%clk 0:00:36.1]}
32. Na5 {[%clk 0:00:24.1]} 32... Ra6 {[%clk 0:00:32.8]} 33. Nb3 {[%clk
0:00:19.9]} 33... Rxa3 {[%clk 0:00:32.6]} 34. Nxd4 {[%clk 0:00:20.4]} 34...
cxd4+ {[%clk 0:00:32.4]} 35. Kd2 {[%clk 0:00:20.6]} 35... Bxc4 {[%clk
0:00:30.5]} 36. Bxc4 {[%clk 0:00:21]} 36... Rxc4 {[%clk 0:00:30.5]} 37. Rb7+
{[%clk 0:00:19.8]} 37... Kf6 {[%clk 0:00:29.6]} 38. Rc1 {[%clk 0:00:19.7]} 38...
Ra2+ {[%clk 0:00:29.3]} 39. Kd1 {[%clk 0:00:19.8]} 39... Rxc1+ {[%clk
0:00:29.3]} 40. Kxc1 {[%clk 0:00:20.3]} 40... a5 {[%clk 0:00:29.4]} 41. Rb6+
{[%clk 0:00:20.2]} 41... Kg7 {[%clk 0:00:28.5]} 42. Ra6 {[%clk 0:00:19.6]} 42...
f6 {[%clk 0:00:27.9]} 43. Kd1 {[%clk 0:00:19.7]} 43... Rxh2 {[%clk 0:00:27]} 44.
Rxa5 {[%clk 0:00:18.8]} 44... h5 {[%clk 0:00:27.1]} 45. Ra6 {[%clk 0:00:18.5]}
45... Rg2 {[%clk 0:00:26.9]} 46. Ke1 {[%clk 0:00:17.7]} 46... Rxg3 {[%clk
0:00:26.3]} 47. Kf2 {[%clk 0:00:17.8]} 47... h4 {[%clk 0:00:26]} 48. Ra7+ {[%clk
0:00:16.7]} 48... Kg6 {[%clk 0:00:25.7]} 49. Ra6 {[%clk 0:00:17.4]} 49... g4
{[%clk 0:00:24.7]} 50. fxg4 {[%clk 0:00:16.4]} 50... Rxg4 {[%clk 0:00:24.8]} 0-1

[Event "*** Titled Tuesday Blitz"]
[Site "Chess.com"]
[Date "2020.05.12"]
[Round "5"]
[White "PaulfromSPb"]
[Black "Diego_FloresQ"]
[Result "0-1"]
[WhiteElo "2620"]
[BlackElo "2455"]
[TimeControl "180+1"]
[EndTime "10:56:00 PDT"]
[Termination "Diego_FloresQ won by resignation"]

1. e4 {[%clk 0:02:53.6]} 1... c5 {[%clk 0:01:56.7]} 2. Ne2 {[%clk 0:02:42.8]}
2... e6 {[%clk 0:01:56]} 3. g3 {[%clk 0:02:42.7]} 3... d5 {[%clk 0:01:56.3]} 4.
Bg2 {[%clk 0:02:43.6]} 4... d4 {[%clk 0:01:56.1]} 5. O-O {[%clk 0:02:41.1]} 5...
Nc6 {[%clk 0:01:56.7]} 6. d3 {[%clk 0:02:40.3]} 6... Bd6 {[%clk 0:01:57.3]} 7.
f4 {[%clk 0:02:39.8]} 7... Nge7 {[%clk 0:01:57.9]} 8. Nd2 {[%clk 0:02:39.1]}
8... f5 {[%clk 0:01:57.8]} 9. Nf3 {[%clk 0:02:33.4]} 9... O-O {[%clk 0:01:58]}
10. e5 {[%clk 0:02:28.3]} 10... Bc7 {[%clk 0:01:57.4]} 11. c4 {[%clk 0:02:28.2]}
11... b6 {[%clk 0:01:49.9]} 12. a3 {[%clk 0:02:27.1]} 12... Rb8 {[%clk
0:01:50.1]} 13. Rb1 {[%clk 0:02:27]} 13... a5 {[%clk 0:01:50.5]} 14. Bd2 {[%clk
0:02:25]} 14... Bd7 {[%clk 0:01:51]} 15. b4 {[%clk 0:02:22.9]} 15... axb4 {[%clk
0:01:48.5]} 16. axb4 {[%clk 0:02:23.8]} 16... Be8 {[%clk 0:01:48.8]} 17. b5
{[%clk 0:02:21.4]} 17... Na7 {[%clk 0:01:48.3]} 18. Ra1 {[%clk 0:02:20.8]} 18...
Nac8 {[%clk 0:01:48.8]} 19. Ng5 {[%clk 0:02:19.3]} 19... Qd7 {[%clk 0:01:48.3]}
20. Bf3 {[%clk 0:02:11.6]} 20... h6 {[%clk 0:01:48.4]} 21. Nh3 {[%clk
0:02:11.3]} 21... Qd8 {[%clk 0:01:39.5]} 22. Ra3 {[%clk 0:02:03.4]} 22... Ng6
{[%clk 0:01:39.8]} 23. Qc2 {[%clk 0:01:58.4]} 23... Nh8 {[%clk 0:01:40.1]} 24.
Rfa1 {[%clk 0:01:57]} 24... Kh7 {[%clk 0:01:40.4]} 25. Ra8 {[%clk 0:01:56.2]}
25... Rxa8 {[%clk 0:01:36.3]} 26. Rxa8 {[%clk 0:01:55.5]} 26... Bd7 {[%clk
0:01:36.9]} 27. Qa2 {[%clk 0:01:52.3]} 27... Nf7 {[%clk 0:01:36.8]} 28. Nf2
{[%clk 0:01:41]} 28... g5 {[%clk 0:01:36.7]} 29. Kh1 {[%clk 0:01:37.6]} 29...
Rg8 {[%clk 0:01:37.2]} 30. Qa1 {[%clk 0:01:33.4]} 30... gxf4 {[%clk 0:01:37.4]}
31. gxf4 {[%clk 0:01:33.1]} 31... Qh4 {[%clk 0:01:37.6]} 32. Qf1 {[%clk
0:01:31.5]} 32... Ne7 {[%clk 0:01:37.1]} 33. Ra7 {[%clk 0:01:30.3]} 33... Rc8
{[%clk 0:01:36]} 34. Be1 {[%clk 0:01:26]} 34... Ng8 {[%clk 0:01:33]} 35. Ne4
{[%clk 0:01:21.7]} 35... Qd8 {[%clk 0:01:33.3]} 36. N4g3 {[%clk 0:01:18.1]}
36... Bb8 {[%clk 0:01:33.4]} 37. Ra6 {[%clk 0:01:15.1]} 37... Nh8 {[%clk
0:01:32.7]} 38. Nh5 {[%clk 0:01:14.8]} 38... Be8 {[%clk 0:01:32.4]} 39. Neg3
{[%clk 0:01:09.9]} 39... Ng6 {[%clk 0:01:25.7]} 40. Bb7 {[%clk 0:00:57.8]} 40...
Rc7 {[%clk 0:01:17.5]} 41. Bg2 {[%clk 0:00:44]} 41... Ra7 {[%clk 0:01:14.7]} 42.
Qf3 {[%clk 0:00:41.7]} 42... Nh4 {[%clk 0:01:12]} 43. Rxa7+ {[%clk 0:00:41.5]}
43... Bxa7 {[%clk 0:01:10.7]} 44. Qb7+ {[%clk 0:00:42.4]} 44... Qd7 {[%clk
0:01:06]} 45. Qxd7+ {[%clk 0:00:33.4]} 45... Bxd7 {[%clk 0:01:06.9]} 46. Bc6
{[%clk 0:00:33.7]} 46... Bxc6+ {[%clk 0:01:01.8]} 47. bxc6 {[%clk 0:00:34.6]}
47... Bb8 {[%clk 0:01:02.3]} 48. Ne4 {[%clk 0:00:31.2]} 48... fxe4 {[%clk
0:00:59.1]} 49. Bxh4 {[%clk 0:00:30.1]} 49... exd3 {[%clk 0:00:59.7]} 50. Be1
{[%clk 0:00:29.8]} 50... Ne7 {[%clk 0:00:58]} 51. Nf6+ {[%clk 0:00:29.6]} 51...
Kg6 {[%clk 0:00:57.8]} 52. Kg2 {[%clk 0:00:28]} 52... Nxc6 {[%clk 0:00:58.1]}
53. Kf3 {[%clk 0:00:28.4]} 53... Bxe5 {[%clk 0:00:52.7]} 54. Nd7 {[%clk
0:00:21.4]} 54... Bc7 {[%clk 0:00:47.5]} 55. Ke4 {[%clk 0:00:21.7]} 55... Kf7
{[%clk 0:00:45.7]} 56. Kxd3 {[%clk 0:00:15.8]} 56... Ke7 {[%clk 0:00:45.4]} 57.
Ne5 {[%clk 0:00:16.7]} 57... Bxe5 {[%clk 0:00:44.6]} 0-1

[Event "*** Titled Tuesday Blitz"]
[Site "Chess.com"]
[Date "2020.05.12"]
[Round "5"]
[White "druskacik"]
[Black "TheoSlade"]
[Result "1-0"]
[WhiteElo "2641"]
[BlackElo "2272"]
[TimeControl "180+1"]
[EndTime "10:56:00 PDT"]
[Termination "druskacik won on time"]

1. e4 {[%clk 0:02:50.2]} 1... e5 {[%clk 0:03:00.4]} 2. Nf3 {[%clk 0:02:50.1]}
2... Nc6 {[%clk 0:03:01]} 3. Nc3 {[%clk 0:02:50.8]} 3... Nf6 {[%clk 0:03:01]} 4.
d4 {[%clk 0:02:50.9]} 4... exd4 {[%clk 0:03:01.2]} 5. Nxd4 {[%clk 0:02:51.8]}
5... Bb4 {[%clk 0:03:01.4]} 6. Nxc6 {[%clk 0:02:52.1]} 6... bxc6 {[%clk
0:03:02.1]} 7. Bd3 {[%clk 0:02:52.8]} 7... d5 {[%clk 0:03:02.3]} 8. exd5 {[%clk
0:02:53.7]} 8... O-O {[%clk 0:03:02.3]} 9. O-O {[%clk 0:02:53.9]} 9... cxd5
{[%clk 0:03:02.8]} 10. Bg5 {[%clk 0:02:53.5]} 10... c6 {[%clk 0:02:59.6]} 11.
Qf3 {[%clk 0:02:53.5]} 11... Bd6 {[%clk 0:02:57.2]} 12. Rae1 {[%clk 0:02:52.4]}
12... h6 {[%clk 0:02:52.3]} 13. Bxf6 {[%clk 0:02:51.7]} 13... Qxf6 {[%clk
0:02:52.1]} 14. Qxf6 {[%clk 0:02:52.1]} 14... gxf6 {[%clk 0:02:53]} 15. Nd1
{[%clk 0:02:46.4]} 15... Bd7 {[%clk 0:02:48.4]} 16. Ne3 {[%clk 0:02:46]} 16...
Rab8 {[%clk 0:02:47.6]} 17. b3 {[%clk 0:02:45.9]} 17... Rfe8 {[%clk 0:02:45.1]}
18. Nf5 {[%clk 0:02:45.4]} 18... Bxf5 {[%clk 0:02:45.1]} 19. Bxf5 {[%clk
0:02:46.3]} 19... Bb4 {[%clk 0:02:42.2]} 20. Rd1 {[%clk 0:02:42.3]} 20... Re2
{[%clk 0:02:30.6]} 21. Rd3 {[%clk 0:02:35.6]} 21... Rb7 {[%clk 0:02:11.8]} 22.
Rg3+ {[%clk 0:02:34.1]} 22... Kf8 {[%clk 0:02:11]} 23. Rh3 {[%clk 0:02:34]}
23... Kg7 {[%clk 0:02:10.7]} 24. Bd3 {[%clk 0:02:33.2]} 24... Re8 {[%clk
0:02:03.9]} 25. Rg3+ {[%clk 0:02:30.2]} 25... Kf8 {[%clk 0:02:02.4]} 26. Rh3
{[%clk 0:02:31.1]} 26... Kg7 {[%clk 0:02:02.3]} 27. Rh4 {[%clk 0:02:31.6]} 27...
Bd6 {[%clk 0:01:58.1]} 28. g3 {[%clk 0:02:26.9]} 28... Rbe7 {[%clk 0:01:57.8]}
29. Kg2 {[%clk 0:02:26.5]} 29... Re1 {[%clk 0:01:52.2]} 30. Rg4+ {[%clk
0:02:09.4]} 30... Kf8 {[%clk 0:01:51.7]} 31. Rxe1 {[%clk 0:01:54.1]} 31... Rxe1
{[%clk 0:01:52.6]} 32. Ra4 {[%clk 0:01:53.9]} 32... Re7 {[%clk 0:01:51.3]} 33.
Ra6 {[%clk 0:01:53.3]} 33... Rc7 {[%clk 0:01:46.6]} 34. Kf3 {[%clk 0:01:49.8]}
34... Ke7 {[%clk 0:01:36.7]} 35. Kg4 {[%clk 0:01:49.5]} 35... Ke6 {[%clk
0:01:31.4]} 36. Bf5+ {[%clk 0:01:44.8]} 36... Ke5 {[%clk 0:01:20.5]} 37. Bd3
{[%clk 0:01:21.1]} 37... Bf8 {[%clk 0:01:11]} 38. Ra4 {[%clk 0:01:18.3]} 38...
c5 {[%clk 0:01:07.1]} 39. f4+ {[%clk 0:01:17.8]} 39... Ke6 {[%clk 0:01:04.8]}
40. Ra6+ {[%clk 0:01:13.1]} 40... Ke7 {[%clk 0:01:02.2]} 41. Kf5 {[%clk
0:01:11.3]} 41... Bg7 {[%clk 0:01:01]} 42. Bb5 {[%clk 0:01:09.6]} 42... Bh8
{[%clk 0:00:45.5]} 43. Bc6 {[%clk 0:01:08.5]} 43... d4 {[%clk 0:00:43.9]} 44.
Bd5 {[%clk 0:01:05.6]} 44... Bg7 {[%clk 0:00:42.6]} 45. Bc4 {[%clk 0:01:06]}
45... Bh8 {[%clk 0:00:36.5]} 46. Ra5 {[%clk 0:01:06.2]} 46... Bg7 {[%clk
0:00:33.7]} 47. Rb5 {[%clk 0:01:06.7]} 47... Bh8 {[%clk 0:00:28.2]} 48. Rb8
{[%clk 0:01:06.7]} 48... Bg7 {[%clk 0:00:27.8]} 49. Rg8 {[%clk 0:01:00.8]} 49...
Bf8 {[%clk 0:00:27.9]} 50. Rh8 {[%clk 0:01:01.2]} 50... Rc6 {[%clk 0:00:12.5]}
51. Rh7 {[%clk 0:01:00.1]} 51... Rd6 {[%clk 0:00:08.2]} 52. Rxf7+ {[%clk
0:00:58.3]} 52... Ke8 {[%clk 0:00:08.5]} 53. Rxa7 {[%clk 0:00:58.1]} 53... Rb6
{[%clk 0:00:06.5]} 54. a4 {[%clk 0:00:55.2]} 54... Be7 {[%clk 0:00:03.6]} 55. a5
{[%clk 0:00:54.1]} 55... Rb4 {[%clk 0:00:02.8]} 56. a6 {[%clk 0:00:54.2]} 56...
Rb8 {[%clk 0:00:02.4]} 57. Rb7 {[%clk 0:00:52]} 57... Ra8 {[%clk 0:00:02.5]} 58.
Bb5+ {[%clk 0:00:50.7]} 58... Kf8 {[%clk 0:00:02.6]} 59. Ke6 {[%clk 0:00:50.2]}
59... Bd8 {[%clk 0:00:01.9]} 60. a7 {[%clk 0:00:49.9]} 60... Bb6 {[%clk
0:00:01.4]} 61. Rb8+ {[%clk 0:00:48.5]} 61... Rxb8 {[%clk 0:00:01.8]} 62.
axb8=Q+ {[%clk 0:00:49.4]} 1-0

[Event "*** Titled Tuesday Blitz"]
[Site "Chess.com"]
[Date "2020.05.12"]
[Round "5"]
[White "Mazanchenko_Dmitry"]
[Black "manmanlai1"]
[Result "0-1"]
[WhiteElo "2129"]
[BlackElo "2330"]
[TimeControl "180+1"]
[EndTime "10:56:01 PDT"]
[Termination "manmanlai1 won on time"]

1. e4 {[%clk 0:03:00.9]} 1... c5 {[%clk 0:03:00.1]} 2. Ne2 {[%clk 0:03:00.4]}
2... e6 {[%clk 0:02:59.2]} 3. Nbc3 {[%clk 0:03:00.3]} 3... Nc6 {[%clk
0:02:57.5]} 4. d4 {[%clk 0:02:59.5]} 4... cxd4 {[%clk 0:02:57.2]} 5. Nxd4 {[%clk
0:03:00.4]} 5... a6 {[%clk 0:02:57.7]} 6. Nxc6 {[%clk 0:02:54.8]} 6... bxc6
{[%clk 0:02:56.7]} 7. e5 {[%clk 0:02:54.6]} 7... Qa5 {[%clk 0:02:34.5]} 8. f4
{[%clk 0:02:41.3]} 8... Nh6 {[%clk 0:02:28.9]} 9. Bd3 {[%clk 0:02:36.9]} 9...
Bc5 {[%clk 0:02:26.8]} 10. Bd2 {[%clk 0:02:26]} 10... Qc7 {[%clk 0:02:16.4]} 11.
Ne4 {[%clk 0:02:23.7]} 11... Ba7 {[%clk 0:02:16.3]} 12. Nd6+ {[%clk 0:02:22.9]}
12... Kf8 {[%clk 0:02:16.3]} 13. g4 {[%clk 0:02:04.1]} 13... Rb8 {[%clk
0:02:15.3]} 14. f5 {[%clk 0:01:58.8]} 14... Ng8 {[%clk 0:02:06.2]} 15. Rf1
{[%clk 0:01:42.6]} 15... f6 {[%clk 0:02:04.5]} 16. fxe6 {[%clk 0:01:42.2]} 16...
dxe6 {[%clk 0:02:04]} 17. Bc3 {[%clk 0:01:35.5]} 17... Bc5 {[%clk 0:01:40.7]}
18. exf6 {[%clk 0:01:29.9]} 18... gxf6 {[%clk 0:01:37.4]} 19. Bxf6 {[%clk
0:01:12.4]} 19... Nxf6 {[%clk 0:01:22.1]} 20. Rxf6+ {[%clk 0:01:13.3]} 20... Kg8
{[%clk 0:01:21.9]} 21. Ne4 {[%clk 0:01:02.2]} 21... Bd4 {[%clk 0:01:21.4]} 22.
Qf3 {[%clk 0:00:49]} 22... Qe7 {[%clk 0:00:49.1]} 23. c3 {[%clk 0:00:39.6]}
23... Bxf6 {[%clk 0:00:44.9]} 24. Nxf6+ {[%clk 0:00:40.5]} 24... Kg7 {[%clk
0:00:45.2]} 25. Nh5+ {[%clk 0:00:39.6]} 25... Kg8 {[%clk 0:00:45.6]} 26. O-O-O
{[%clk 0:00:37]} 26... Bb7 {[%clk 0:00:39.4]} 27. Qf4 {[%clk 0:00:32.1]} 27...
Rf8 {[%clk 0:00:33.7]} 28. Qh6 {[%clk 0:00:26]} 28... c5 {[%clk 0:00:19.1]} 29.
g5 {[%clk 0:00:24.2]} 29... Rf2 {[%clk 0:00:10.3]} 30. Rf1 {[%clk 0:00:15.6]}
30... Rxf1+ {[%clk 0:00:10]} 31. Bxf1 {[%clk 0:00:16.5]} 31... Kf7 {[%clk
0:00:10.4]} 32. g6+ {[%clk 0:00:13.4]} 32... Ke8 {[%clk 0:00:10.4]} 33. g7
{[%clk 0:00:12.1]} 33... Rg8 {[%clk 0:00:10.4]} 34. Nf6+ {[%clk 0:00:11.6]}
34... Kf7 {[%clk 0:00:10.2]} 35. Qxh7 {[%clk 0:00:09.2]} 35... Qxf6 {[%clk
0:00:09.4]} 36. Bd3 {[%clk 0:00:03.6]} 36... Rxg7 {[%clk 0:00:09.1]} 37. Qh5+
{[%clk 0:00:03.3]} 37... Kg8 {[%clk 0:00:09]} 38. Qxc5 {[%clk 0:00:03.1]} 38...
Bd5 {[%clk 0:00:08.6]} 39. Qc8+ {[%clk 0:00:02.1]} 39... Qf8 {[%clk 0:00:08.3]}
0-1

[Event "*** Titled Tuesday Blitz"]
[Site "Chess.com"]
[Date "2020.05.12"]
[Round "5"]
[White "cukin84"]
[Black "AsselLesbekova"]
[Result "1-0"]
[WhiteElo "2119"]
[BlackElo "2255"]
[TimeControl "180+1"]
[EndTime "10:56:01 PDT"]
[Termination "cukin84 won by resignation"]

1. e4 {[%clk 0:03:00.9]} 1... c5 {[%clk 0:02:58.9]} 2. Nc3 {[%clk 0:02:59.9]}
2... Nc6 {[%clk 0:02:54.4]} 3. Bb5 {[%clk 0:02:59.2]} 3... Nd4 {[%clk
0:02:52.5]} 4. Bc4 {[%clk 0:02:58.7]} 4... e6 {[%clk 0:02:51.8]} 5. Nf3 {[%clk
0:02:58]} 5... Nf6 {[%clk 0:02:43.5]} 6. d3 {[%clk 0:02:51.5]} 6... d6 {[%clk
0:02:41.8]} 7. O-O {[%clk 0:02:50.3]} 7... Be7 {[%clk 0:02:39.3]} 8. a4 {[%clk
0:02:44.2]} 8... O-O {[%clk 0:02:38.9]} 9. Nxd4 {[%clk 0:02:43.2]} 9... cxd4
{[%clk 0:02:38.6]} 10. Ne2 {[%clk 0:02:43.4]} 10... e5 {[%clk 0:02:37.7]} 11. f4
{[%clk 0:02:43.3]} 11... Be6 {[%clk 0:02:37.7]} 12. b3 {[%clk 0:02:37]} 12... a6
{[%clk 0:02:19]} 13. h3 {[%clk 0:02:31.4]} 13... Qd7 {[%clk 0:02:11.3]} 14. f5
{[%clk 0:02:17.3]} 14... Bxc4 {[%clk 0:02:05.7]} 15. bxc4 {[%clk 0:02:18.2]}
15... b5 {[%clk 0:02:04.2]} 16. g4 {[%clk 0:02:00.6]} 16... bxc4 {[%clk
0:02:00.4]} 17. g5 {[%clk 0:02:00.1]} 17... cxd3 {[%clk 0:01:59.6]} 18. cxd3
{[%clk 0:01:59.2]} 18... Ne8 {[%clk 0:01:56.6]} 19. Ng3 {[%clk 0:01:54]} 19...
f6 {[%clk 0:01:55.8]} 20. g6 {[%clk 0:01:48.7]} 20... h6 {[%clk 0:01:50.2]} 21.
Qh5 {[%clk 0:01:47.4]} 21... Bd8 {[%clk 0:01:44.7]} 22. Rb1 {[%clk 0:01:40.4]}
22... Ba5 {[%clk 0:01:40.3]} 23. Rf2 {[%clk 0:01:25.7]} 23... Nc7 {[%clk
0:01:33.6]} 24. Rfb2 {[%clk 0:01:23.8]} 24... Be1 {[%clk 0:01:23.1]} 25. Bxh6
{[%clk 0:00:57.4]} 25... gxh6 {[%clk 0:01:18.3]} 26. Rxe1 {[%clk 0:00:55.6]}
26... Qg7 {[%clk 0:01:10]} 27. Qg4 {[%clk 0:00:53.9]} 27... Rab8 {[%clk
0:01:04.7]} 28. Reb1 {[%clk 0:00:52]} 28... Rxb2 {[%clk 0:01:03.9]} 29. Rxb2
{[%clk 0:00:51.3]} 29... d5 {[%clk 0:00:59.8]} 30. Nh5 {[%clk 0:00:50]} 30...
Qe7 {[%clk 0:00:54.1]} 31. g7 {[%clk 0:00:47.4]} 31... Rc8 {[%clk 0:00:46.6]}
32. Qg6 {[%clk 0:00:47.1]} 32... Ne8 {[%clk 0:00:39.8]} 33. Qxh6 {[%clk
0:00:44.4]} 33... Nxg7 {[%clk 0:00:39.8]} 34. Nxf6+ {[%clk 0:00:39.3]} 34... Kf7
{[%clk 0:00:39.5]} 35. Qg6+ {[%clk 0:00:22.8]} 35... Kf8 {[%clk 0:00:36]} 36.
Nh7+ {[%clk 0:00:21.1]} 36... Kg8 {[%clk 0:00:33.8]} 37. f6 {[%clk 0:00:20.4]}
37... Rc1+ {[%clk 0:00:25.4]} 38. Kh2 {[%clk 0:00:20.2]} 38... Qf7 {[%clk
0:00:22.2]} 39. Qg5 {[%clk 0:00:20.4]} 39... Rc8 {[%clk 0:00:20.6]} 40. Rg2
{[%clk 0:00:19.1]} 40... Kxh7 {[%clk 0:00:20.4]} 41. Qh4+ {[%clk 0:00:18.9]}
41... Kg8 {[%clk 0:00:20.2]} 42. Rxg7+ {[%clk 0:00:18.9]} 42... Qxg7 {[%clk
0:00:20.8]} 43. fxg7 {[%clk 0:00:19.2]} 43... Rc2+ {[%clk 0:00:21]} 44. Kg3
{[%clk 0:00:17.6]} 44... Rc3 {[%clk 0:00:19.3]} 45. Qe7 {[%clk 0:00:17.3]} 45...
Rxd3+ {[%clk 0:00:18.8]} 46. Kh4 {[%clk 0:00:17.6]} 46... Rf3 {[%clk 0:00:17.5]}
47. Qe8+ {[%clk 0:00:16.9]} 47... Kxg7 {[%clk 0:00:17.4]} 48. Qxe5+ {[%clk
0:00:16.9]} 48... Kh7 {[%clk 0:00:17.2]} 49. Qh5+ {[%clk 0:00:16.8]} 1-0